bitfinex-derivatives/quotes_SOLF0:USTF0_20241222
["timestamp","ask_amount","ask_price","bid_price","bid_amount"]
[1734829538599,2.7443,182.3,182.21,3.3]
[1734829539001,2.744,182.32,182.23,2.7452]
[1734829539198,3.26,182.35,182.23,2.7452]
[1734829539799,3.26,182.35,182.24,2.7451]
[1734829540194,3.26,182.35,182.21,3.3]
[1734829540398,2.7445,182.28,182.19,3.3]
[1734829540800,3.3,182.32,182.19,3.3]
[1734829541000,3.3,182.32,182.24,2.7451]
[1734829542495,2.7441,182.31,182.24,2.7451]
[1734829542799,3.3,182.32,182.19,3.3]
[1734829543004,3.3,182.33,182.19,3.3]
[1734829544203,3.3,182.33,182.19,33.02263057]
[1734829544905,6.0438,182.33,182.23,2.7452]
[1734829545202,3.3,182.34,182.2,29.72263057]
[1734829545407,3.3,182.34,182.2,3.3]
[1734829545909,3.3,182.34,182.2,33.02263057]
[1734829546300,3.3,182.34,182.28,2.7445]
[1734829546499,3.3,182.34,182.23,3.3]
[1734829546902,2.744,182.32,182.24,2.7451]
[1734829547098,2.744,182.32,182.23,3.3]
[1734829547303,3.3,182.34,182.2,29.72263057]
[1734829547304,3.3,182.34,182.21,3.3]
[1734829547904,2.744,182.31,182.24,2.745]
[1734829548506,3.3,182.34,182.21,3.3]
[1734829549204,2.7439,182.33,182.27,2.7446]
[1734829549604,2.7439,182.33,182.21,3.3]
[1734829549605,2.744,182.32,182.21,3.3]
[1734829549800,3.3,182.34,182.21,3.3]
[1734829550002,3.3,182.34,182.16,29.72263057]
[1734829550207,2.7444,182.29,182.22,2.7454]
[1734829550708,2.7451,182.24,182.18,6.0459]
[1734829550905,2.7451,182.24,182.17,3.3]
[1734829551208,4.9728,182.28,182.17,3.3]
[1734829551604,3.2383,182.28,182.17,3.3]
[1734829552005,3.2383,182.28,182.23,2.7452]
[1734829552907,3.2383,182.28,182.22,2.7454]
[1734829554008,5.9828,182.28,182.22,2.7454]
[1734829554208,5.9828,182.28,182.23,2.7452]
[1734829554801,3.2383,182.28,182.2,2.7455]
[1734829555007,4.8957,182.28,182.2,2.7455]
[1734829555206,2.7449,182.26,182.21,2.7455]
[1734829555404,4.8957,182.28,182.17,3.3]
[1734829555913,4.8957,182.28,182.16,29.72263057]
[1734829556215,4.8957,182.28,182.16,33.02263057]
[1734829556413,3.3,182.29,182.16,33.02263057]
[1734829556613,3.3,182.32,182.16,33.02263057]
[1734829557114,3.3,182.32,182.16,29.72263057]
[1734829557311,1.7096,182.31,182.17,3.3]
[1734829557612,2.7447,182.27,182.21,2.7455]
[1734829557814,2.7447,182.27,182.17,3.3]
[1734829559817,2.7447,182.27,182.21,2.7454]
[1734829560218,2.7447,182.27,182.17,3.3]
[1734829560420,2.7449,182.26,182.2,2.7457]
[1734829561022,1.7589,182.29,182.2,2.7457]
[1734829561216,2.7451,182.25,182.2,2.7457]
[1734829561616,3.3,182.27,182.17,3.3]
[1734829561821,1.7589,182.29,182.17,3.3]
[1734829562117,1.7162,182.3,182.17,3.3]
[1734829562317,3.3,182.38,182.21,29.72263057]
[1734829562624,2.7433,182.36,182.31,2.7439]
[1734829563320,2.7438,182.33,182.26,3.3]
[1734829563523,3.3,182.38,182.26,3.3]
[1734829564112,3.3,182.38,182.23,3.3]
[1734829564310,2.744,182.32,182.26,2.7447]
[1734829564517,2.744,182.32,182.23,3.3]
[1734829564815,2.7443,182.3,182.25,2.7449]
[1734829565019,3.3,182.32,182.15,59.65541397]
[1734829565320,2.7457,182.21,182.16,2.7463]
[1734829565623,3.3824,182.29,182.15,59.65541397]
[1734829565823,3.3,182.28,182.15,59.65541397]
[1734829566015,33.02263057,182.28,182.15,59.65541397]
[1734829566215,29.72263057,182.24,182.15,18.88761397]
[1734829566416,3.3,182.23,182.07,18.88761397]
[1734829566620,2.7474,182.09,182.07,18.88761397]
[1734829567013,29.72263057,182.24,182.07,18.88761397]
[1734829567220,3.3,182.23,182.07,18.88761397]
[1734829567823,3.3,182.23,182.08,1.6535]
[1734829568424,2.746,182.18,182.11,2.747]
[1734829568625,29.72263057,182.28,182.08,1.6535]
[1734829568626,3.28,182.17,182.08,1.6535]
[1734829568925,3.28,182.16,182.08,1.6535]
[1734829569317,3.28,182.16,182.09,3.348]
[1734829569621,29.72263057,182.28,182.09,3.348]
[1734829569826,3.28,182.27,182.09,33.07063057]
[1734829570027,1.6916,182.29,182.09,33.07063057]
[1734829570320,2.745,182.25,182.18,2.7459]
[1734829570526,30.36682473,182.33,182.14,3.28]
[1734829570727,30.36682473,182.33,182.17,29.72263057]
[1734829570925,3.28,182.32,182.18,4.9633]
[1734829572522,3.28,182.35,182.18,34.68593057]
[1734829572930,2.7442,182.3,182.22,2.7453]
[1734829573125,3.28,182.29,182.18,1.6833]
[1734829573437,3.28,182.28,182.24,2.745]
[1734829573722,3.28,182.28,182.18,1.6833]
[1734829574128,6.0245,182.28,182.22,2.7454]
[1734829574326,3.28,182.28,182.15,1.09799615]
[1734829574524,2.7453,182.23,182.17,2.7461]
[1734829574721,3.28,182.22,182.15,1.09799615]
[1734829574926,3.28,182.23,182.15,1.09799615]
[1734829575524,3.28,182.23,182.18,2.7459]
[1734829577032,3.28,182.23,182.2,2.7456]
[1734829577232,3.28,182.23,182.15,1.09799615]
[1734829578023,3.28,182.23,182.19,2.7458]
[1734829578438,3.28,182.23,182.15,1.09799615]
[1734829578735,2.7447,182.27,182.21,2.7454]
[1734829578929,3.28,182.26,182.21,2.7454]
[1734829579128,2.7451,182.25,182.19,2.7457]
[1734829579325,3.28,182.26,182.15,1.09799615]
[1734829579537,29.72263057,182.36,182.15,1.09799615]
[1734829579734,4.28833437,182.35,182.15,1.09799615]
[1734829579930,29.72263057,182.36,182.15,1.09799615]
[1734829580236,2.7445,182.28,182.22,2.7453]
[1734829580533,29.72263057,182.36,182.15,1.09799615]
[1734829580534,3.28,182.27,182.15,1.09799615]
[1734829580728,3.28,182.26,182.15,1.09799615]
[1734829580935,3.28,182.25,182.15,1.09799615]
[1734829581129,3.28,182.24,182.15,1.09799615]
[1734829581334,3.28,182.23,182.1,1.6074]
[1734829581637,3.28,182.23,182.1,4.8874]
[1734829581838,2.7455,182.21,182.16,2.7462]
[1734829583035,3.28,182.23,182.1,4.8874]
[1734829583232,29.72263057,182.31,182.1,4.8874]
[1734829583535,3.28,182.31,182.13,29.72263057]
[1734829583739,2.7442,182.3,182.13,30.82074729]
[1734829584437,30.36682473,182.35,182.18,29.72263057]
[1734829584638,30.36682473,182.35,182.19,8.2284]
[1734829584829,3.28,182.34,182.3,2.7442]
[1734829585038,30.36682473,182.35,182.24,3.28]
[1734829585235,30.36682473,182.35,182.25,3.28]
[1734829585532,30.36682473,182.43,182.25,3.28]
[1734829585731,3.28,182.42,182.25,3.28]
[1734829586135,2.743,182.38,182.25,3.28]
[1734829586443,86.80263057,182.46,182.25,3.28]
[1734829586629,2.7424,182.43,182.36,2.7433]
[1734829586835,3.28,182.42,182.31,3.28]
[1734829587034,3.28,182.42,182.32,8.2347]
[1734829588239,3.28,182.43,182.32,8.2347]
[1734829588934,30.36682473,182.54,182.32,8.2347]
[1734829588935,3.28,182.47,182.32,37.95733057]
[1734829589139,30.36682473,182.54,182.32,37.95733057]
[1734829589336,2.741,182.52,182.36,29.72263057]
[1734829589539,10.87100171,182.54,182.4,29.72263057]
[1734829589737,10.87100171,182.54,182.41,5.0318]
[1734829589937,7.59100171,182.54,182.41,5.0318]
[1734829590135,7.59100171,182.54,182.44,29.72263057]
[1734829590338,7.59100171,182.54,182.45,3.2755]
[1734829590640,7.59100171,182.54,182.46,3.28]
[1734829590841,94.26107112,182.57,182.46,3.28]
[1734829590842,3.28,182.57,182.46,3.28]
[1734829591238,3.28,182.62,182.46,3.28]
[1734829591636,3.28,182.62,182.54,2.7405]
[1734829591835,189.54389817,182.72,182.5,3.28]
[1734829591836,7.54489255,182.72,182.5,3.28]
[1734829592139,7.54489255,182.72,182.51,5.0318]
[1734829592140,3.28,182.67,182.51,5.0318]
[1734829592334,3.28,182.67,182.51,1.7518]
[1734829592937,2.7395,182.62,182.54,2.7406]
[1734829593136,3.28,182.61,182.54,2.7406]
[1734829593838,3.28,182.61,182.45,3.2755]
[1734829593839,3.28,182.6,182.47,3.28]
[1734829594045,16.5,182.75,182.47,3.28]
[1734829594046,3.28,182.59,182.47,3.28]
[1734829594241,29.72263057,182.64,182.47,3.28]
[1734829594242,3.28,182.58,182.47,3.28]
[1734829594440,3.28,182.57,182.5,2.7412]
[1734829594745,3.28,182.57,182.47,3.28]
[1734829594943,3.28,182.57,182.52,2.7409]
[1734829595341,3.28,182.57,182.47,3.28]
[1734829595543,6.0196,182.61,182.54,2.7405]
[1734829595742,86.78263057,182.68,182.52,3.28]
[1734829595940,29.72263057,182.72,182.53,3.28]
[1734829596145,3.28,182.71,182.54,3.28]
[1734829596446,29.72263057,182.76,182.55,1.7058]
[1734829596645,4.2861211,182.75,182.57,29.72263057]
[1734829596837,3.28,182.74,182.69,2.7383]
[1734829597845,57.02,182.79,182.63,3.28]
[1734829598049,3.4,182.78,182.64,1.7058]
[1734829598539,29.72263057,182.88,182.65,29.72263057]
[1734829598749,4.40564628,182.87,182.65,29.72263057]
[1734829598942,3.4,182.86,182.69,29.72263057]
[1734829599149,3.4,182.85,182.7,6.7735]
[1734829599449,29.72263057,182.92,182.7,6.7735]
[1734829599647,57.0,182.97,182.73,29.72263057]
[1734829599648,3.4,182.91,182.73,29.72263057]
[1734829599848,3.4,182.9,182.73,29.72263057]
[1734829600051,3.4,182.89,182.82,2.7364]
[1734829600449,3.4,182.89,182.77,3.4]
[1734829600649,3.38,182.89,182.77,3.4]
[1734829601654,3.38,182.89,182.83,2.7361]
[1734829602147,3.38,182.89,182.78,3.38]
[1734829602347,3.38,182.89,182.74,1.7119]
[1734829602748,3.38,182.89,182.76,2.7371]
[1734829603155,2.7361,182.85,182.74,1.7119]
[1734829603453,3.38,182.84,182.74,1.7119]
[1734829603854,3.38,182.84,182.81,2.7365]
[1734829604056,3.38,182.88,182.77,3.38]
[1734829604254,3.38,182.9,182.77,3.38]
[1734829604555,6.1153,182.9,182.83,2.7362]
[1734829605252,86.72263057,182.97,182.74,1.7119]
[1734829605253,86.72263057,182.97,182.82,3.38]
[1734829605559,29.72263057,183.02,182.82,3.38]
[1734829605753,29.72263057,183.07,182.83,34.84493057]
[1734829605951,4.38459023,183.06,182.83,34.84493057]
[1734829606156,1.00459023,183.05,182.83,34.84493057]
[1734829606760,2.7333,183.03,182.96,2.7342]
[1734829607058,3.38,183.04,182.83,34.84493057]
[1734829607362,3.38,183.04,182.93,2.7347]
[1734829607952,3.38,183.06,182.97,2.7341]
[1734829608158,3.38,183.06,182.9,3.38]
[1734829608560,6.1129,183.06,182.94,2.7345]
[1734829608864,3.38,183.06,182.9,3.38]
[1734829609261,86.66263057,183.12,182.9,3.38]
[1734829609461,3.38,183.11,182.9,3.38]
[1734829609962,3.38,183.11,182.91,3.38]
[1734829610153,3.38,183.1,182.91,3.38]
[1734829610353,2.7332,183.04,182.98,2.734]
[1734829610558,3.38,183.04,182.98,2.734]
[1734829610867,3.38,183.04,182.96,3.38]
[1734829611263,3.38,183.04,182.88,29.72263057]
[1734829611459,6.1131,183.04,182.97,2.734]
[1734829611656,3.38,183.04,182.83,34.84493057]
[1734829611863,2.7342,182.97,182.89,2.7353]
[1734829612059,3.38,182.96,182.89,2.7353]
[1734829612260,3.38,182.95,182.83,5.1223]
[1734829612462,2.7349,182.93,182.87,2.7356]
[1734829613056,2.7352,182.9,182.83,7.8584]
[1734829613261,2.7352,182.9,182.83,5.1223]
[1734829613462,3.38,182.94,182.83,5.1223]
[1734829613964,3.38,182.94,182.85,2.7359]
[1734829614260,3.38,182.94,182.83,3.3538]
[1734829614461,3.38,182.94,182.8,3.38]
[1734829614462,2.7352,182.9,182.82,2.7363]
[1734829614669,3.38,182.89,182.8,3.38]
[1734829615164,3.38,182.89,182.84,2.736]
[1734829615364,3.38,182.89,182.75,5.0357]
[1734829615565,3.38,182.89,182.76,3.38]
[1734829616266,2.7358,182.87,182.81,2.7365]
[1734829616465,3.38,182.89,182.76,3.38]
[1734829616867,3.38,182.89,182.83,2.7361]
[1734829617067,3.38,182.89,182.76,3.38]
[1734829617462,3.38,182.89,182.78,29.72263057]
[1734829617663,3.38,182.93,182.78,29.72263057]
[1734829617861,56.88,182.97,182.78,29.72263057]
[1734829618158,6.1144,182.96,182.78,29.72263057]
[1734829618357,3.38,182.96,182.78,29.72263057]
[1734829619065,3.38,182.95,182.78,29.72263057]
[1734829619265,2.7349,182.92,182.86,2.7358]
[1734829619468,6.1149,182.92,182.86,2.7358]
[1734829620369,3.38,182.92,182.78,3.38]
[1734829620772,3.38,182.92,182.87,2.7355]
[1734829620969,3.38,182.92,182.83,3.38]
[1734829621165,3.38,182.92,182.81,3.38]
[1734829621673,3.38,182.92,182.78,3.38]
[1734829621871,3.38,182.92,182.75,5.0357]
[1734829622070,33.10263057,182.92,182.75,5.0357]
[1734829622476,29.72263057,182.88,182.73,2.7377]
[1734829622666,3.38,182.87,182.69,1.7109]
[1734829622869,29.72263057,182.84,182.68,1.6303]
[1734829623174,29.72263057,182.8,182.63,1.7109]
[1734829623374,29.72263057,182.76,182.6,1.6303]
[1734829623578,2.7386,182.67,182.6,1.6303]
[1734829623874,6.1186,182.67,182.6,1.6303]
[1734829624073,6.1186,182.67,182.55,4.3772]
[1734829624272,6.1186,182.67,182.53,1.7109]
[1734829624573,6.1186,182.67,182.51,1.7451]
[1734829624775,29.72263057,182.68,182.51,1.7451]
[1734829624970,3.38,182.67,182.52,3.38]
[1734829625164,3.38,182.69,182.52,3.38]
[1734829625365,3.38,182.68,182.52,3.38]
[1734829625566,29.72263057,182.74,182.52,3.38]
[1734829625771,6.1178,182.73,182.63,2.7391]
[1734829626270,6.1178,182.73,182.57,3.38]
[1734829626271,3.38,182.72,182.57,3.38]
[1734829626477,3.38,182.71,182.57,3.38]
[1734829626773,3.38,182.76,182.58,34.01348518]
[1734829626976,3.64,182.79,182.72,2.7378]
[1734829627167,3.64,182.79,182.58,34.01348518]
[1734829627365,3.64,182.79,182.59,3.64]
[1734829628470,3.64,182.79,182.6,3.64]
[1734829628670,3.64,182.79,182.61,1.6233]
[1734829629372,3.64,182.79,182.68,2.7384]
[1734829629373,2.7371,182.78,182.68,2.7384]
[1734829629675,3.64,182.77,182.61,1.6233]
[1734829629878,3.64,182.77,182.62,3.64]
[1734829631371,3.64,182.77,182.71,2.738]
[1734829631975,3.64,182.77,182.61,1.6233]
[1734829631976,90.91348518,182.89,182.67,3.64]
[1734829632175,4.64548085,182.88,182.68,3.2833]
[1734829632476,1.00548085,182.87,182.68,3.2833]
[1734829632682,90.91348518,182.89,182.68,3.2833]
[1734829632871,4.64540931,182.88,182.68,3.2833]
[1734829633075,34.01348518,182.95,182.68,3.2833]
[1734829633283,4.64534234,182.94,182.81,2.7365]
[1734829633581,3.64,182.94,182.75,3.64]
[1734829633780,1.00512246,182.93,182.75,3.64]
[1734829633970,3.64,182.94,182.75,3.64]
[1734829634179,3.64,182.94,182.76,1.6281]
[1734829634371,16.5,182.93,182.68,6.9233]
[1734829634577,1.00518333,182.92,182.69,1.6281]
[1734829635178,2.7363,182.83,182.75,2.7374]
[1734829635375,3.64,182.82,182.75,2.7374]
[1734829635581,3.64,182.84,182.69,5.2681]
[1734829635783,3.64,182.84,182.78,2.7368]
[1734829635984,3.64,182.84,182.69,5.2681]
[1734829637984,6.3762,182.84,182.77,2.737]
[1734829638177,3.64,182.84,182.69,5.2681]
[1734829638579,3.64,182.84,182.78,2.7369]
[1734829639184,34.01348518,182.95,182.74,3.64]
[1734829639482,2.7352,182.9,182.84,2.7361]
[1734829639682,3.64,182.89,182.84,2.7361]
[1734829639881,3.64,182.89,182.74,3.64]
[1734829639882,3.64,182.89,182.81,2.7364]
[1734829640384,2.7355,182.88,182.82,2.7363]
[1734829640682,3.64,182.89,182.74,3.64]
[1734829640889,2.7355,182.88,182.74,3.64]
[1734829641385,2.7355,182.88,182.82,2.7364]
[1734829642381,3.64,182.89,182.74,3.64]
[1734829642576,3.64,182.89,182.83,2.7362]
[1734829642986,2.7355,182.88,182.83,2.7362]
[1734829643185,3.64,182.89,182.69,1.6281]
[1734829643384,3.64,182.89,182.7,3.64]
[1734829643680,2.7359,182.86,182.7,3.64]
[1734829644282,3.64,182.89,182.7,3.64]
[1734829644690,2.7364,182.83,182.77,2.7371]
[1734829644884,3.64,182.82,182.77,2.7371]
[1734829645491,3.64,182.82,182.7,3.64]
[1734829646390,3.64,182.82,182.69,5.2681]
[1734829647586,3.64,182.87,182.69,5.2681]
[1734829647783,3.64,182.86,182.69,5.2681]
[1734829648489,2.7362,182.84,182.78,2.7369]
[1734829648694,3.64,182.86,182.69,1.6281]
[1734829648889,2.7365,182.81,182.74,2.7374]
[1734829649195,3.64,182.8,182.69,1.6281]
[1734829649391,3.64,182.79,182.69,1.6281]
[1734829649584,2.7373,182.76,182.71,2.7379]
[1734829649893,3.64,182.79,182.69,1.6281]
[1734829651285,3.64,182.79,182.58,32.90822015]
[1734829651486,3.64,182.79,182.61,3.2801]
[1734829651688,45.76822015,182.78,182.61,3.2801]
[1734829651887,45.76822015,182.78,182.53,178.40675507]
[1734829652093,62.26822015,182.78,182.55,3.2801]
[1734829652296,29.26822015,182.73,182.55,3.2801]
[1734829652493,3.64,182.72,182.55,3.2801]
[1734829652989,3.64,182.72,182.56,29.26822015]
[1734829653189,3.64,182.77,182.61,29.26822015]
[1734829653388,7.41919512,182.83,182.62,3.64]
[1734829653587,3.64,182.82,182.66,29.26822015]
[1734829653790,3.64,182.82,182.67,6.9201]
[1734829653997,2.7367,182.81,182.74,2.7375]
[1734829654198,2.7367,182.81,182.67,6.9201]
[1734829655492,3.64,182.82,182.67,6.9201]
[1734829655696,3.64,182.87,182.71,29.26822015]
[1734829655899,3.64,182.86,182.72,1.6309]
[1734829656298,3.64,182.86,182.67,3.2801]
[1734829657696,2.7366,182.81,182.67,3.2801]
[1734829657897,29.26822015,182.87,182.67,3.2801]
[1734829658098,3.62,182.86,182.67,3.2801]
[1734829658298,3.62,182.85,182.8,2.7367]
[1734829658498,3.62,182.85,182.72,3.62]
[1734829659498,6.3561,182.85,182.78,2.7369]
[1734829659701,6.3561,182.85,182.72,3.62]
[1734829660694,3.62,182.85,182.71,29.26822015]
[1734829660895,3.62,182.85,182.67,6.9001]
[1734829661096,29.26822015,182.92,182.71,29.26822015]
[1734829661395,2.7359,182.86,182.72,3.62]
[1734829661600,3.62,182.85,182.72,3.62]
[1734829662505,6.3561,182.85,182.72,3.62]
[1734829663497,56.9,182.93,182.72,3.62]
[1734829663904,3.62,182.92,182.76,29.26822015]
[1734829664095,3.62,182.92,182.77,8.6973]
[1734829665300,7.41919512,182.96,182.91,2.7349]
[1734829665504,7.41919512,182.96,182.85,3.62]
[1734829665805,25.87758538,182.97,182.86,1.6418]
[1734829665806,3.62,182.97,182.86,1.6418]
[1734829666002,2.7346,182.94,182.89,2.7353]
[1734829666203,3.62,182.97,182.89,2.7353]
[1734829666506,29.26822015,183.02,182.86,1.6418]
[1734829666703,3.62,183.01,182.79,3.62]
[1734829666909,3.62,183.01,182.8,1.6418]
[1734829667201,29.26822015,183.02,182.8,1.6418]
[1734829667407,3.62,183.01,182.81,29.26822015]
[1734829667999,64.31919512,183.05,182.81,29.26822015]
[1734829668203,3.62,183.04,182.81,29.26822015]
[1734829668705,2.734,182.99,182.81,29.26822015]
[1734829668900,6.354,182.99,182.81,29.26822015]
[1734829669203,6.354,182.99,182.94,2.7346]
[1734829669609,3.62,182.99,182.85,3.62]
[1734829669803,3.62,182.99,182.9,2.735]
[1734829670006,3.62,183.03,182.85,3.62]
[1734829670204,2.7334,183.02,182.85,3.62]
[1734829670508,2.7334,183.02,182.96,2.7342]
[1734829670806,3.62,183.01,182.96,2.7342]
[1734829671001,2.7334,183.02,182.96,2.7342]
[1734829671201,3.62,183.04,182.9,3.62]
[1734829671407,3.62,183.04,182.91,1.7324]
[1734829672001,58.94500065,183.12,182.91,1.7324]
[1734829672205,58.94500065,183.12,182.91,31.00062015]
[1734829672407,3.62,183.11,182.91,31.00062015]
[1734829673109,2.7322,183.1,183.03,2.7331]
[1734829674109,2.7322,183.1,183.04,2.7331]
[1734829674310,3.62,183.09,183.04,2.7331]
[1734829674714,3.62,183.09,183.06,2.7327]
[1734829675414,3.62,183.09,183.07,2.7326]
[1734829676010,56.88,183.16,183.0,3.62]
[1734829676215,3.62,183.15,183.01,5.0289]
[1734829677112,3.62,183.15,183.01,34.29712015]
[1734829678520,3.62,183.15,183.12,2.7318]
[1734829678723,3.62,183.15,183.05,3.62]
[1734829678925,29.26822015,183.22,183.05,3.62]
[1734829679124,29.26822015,183.26,183.14,2.7315]
[1734829679421,3.62,183.25,183.05,32.88822015]
[1734829680124,3.62,183.25,183.05,29.26822015]
[1734829680318,29.26822015,183.22,183.01,34.29712015]
[1734829680826,1.00355076,183.21,183.01,34.29712015]
[1734829681022,3.62,183.2,183.01,34.29712015]
[1734829681223,2.7311,183.18,183.06,2.7327]
[1734829681420,3.62,183.2,183.05,3.62]
[1734829681825,3.62,183.2,183.01,34.29712015]
[1734829682327,6.3509,183.2,183.14,2.7316]
[1734829682527,29.26822015,183.26,183.06,32.88822015]
[1734829682721,3.62,183.25,183.06,32.88822015]
[1734829682923,2.7301,183.24,183.06,32.88822015]
[1734829683120,3.62,183.25,183.06,32.88822015]
[1734829683318,3.62,183.25,183.14,2.7315]
[1734829683319,2.7308,183.2,183.14,2.7315]
[1734829683523,2.7308,183.2,183.03,3.62]
[1734829683524,3.62,183.2,183.03,3.62]
[1734829683922,2.7312,183.17,183.08,2.7325]
[1734829684119,3.62,183.2,183.03,3.62]
[1734829684630,2.7318,183.13,183.03,3.62]
[1734829684831,6.3518,183.13,183.03,3.62]
[1734829685032,3.62,183.13,183.03,3.62]
[1734829685636,3.62,183.13,183.06,2.7328]
[1734829685833,3.62,183.13,183.03,3.62]
[1734829686331,3.62,183.13,183.09,2.7322]
[1734829686531,3.62,183.13,183.03,3.62]
[1734829686726,3.62,183.13,183.09,2.7323]
[1734829686926,6.3518,183.13,183.02,29.26822015]
[1734829687127,29.26822015,183.23,183.02,29.26822015]
[1734829687334,3.66,183.23,183.07,29.26822015]
[1734829687632,6.3903,183.23,183.08,3.66]
[1734829687831,3.66,183.23,183.08,3.66]
[1734829688433,3.66,183.22,183.18,2.7309]
[1734829688836,3.66,183.22,183.17,2.7311]
[1734829689034,56.86,183.27,183.08,3.66]
[1734829689236,3.66,183.26,183.09,1.7389]
[1734829690733,56.86,183.27,183.09,1.7389]
[1734829691030,3.66,183.26,183.09,1.7389]
[1734829691429,2.73,183.25,183.2,2.7306]
[1734829691636,3.66,183.26,183.09,1.7389]
[1734829692633,2.73,183.25,183.2,2.7307]
[1734829692831,3.66,183.26,183.09,1.7389]
[1734829693128,3.66,183.26,183.19,2.7308]
[1734829693334,3.66,183.26,183.09,1.7389]
[1734829693528,56.86,183.27,183.09,1.7389]
[1734829693736,3.66,183.29,183.11,29.26822015]
[1734829694028,3.66,183.28,183.24,2.7301]
[1734829694430,2.7294,183.29,183.16,3.66]
[1734829694642,2.7294,183.29,183.17,1.756]
[1734829695736,3.66,183.31,183.17,1.756]
[1734829696136,3.66,183.31,183.12,8.6345]
[1734829696332,3.66,183.31,183.19,2.7307]
[1734829696333,2.7302,183.24,183.19,2.7307]
[1734829696534,3.66,183.23,183.12,4.9745]
[1734829697940,3.66,183.23,183.19,2.7307]
[1734829698141,3.66,183.23,183.12,4.9745]
[1734829698540,3.66,183.23,183.2,2.7307]
[1734829699247,3.66,183.26,183.12,4.9745]
[1734829699643,3.66,183.26,183.16,2.7313]
[1734829699840,3.66,183.26,183.12,4.9745]
[1734829701651,2.7305,183.22,183.16,2.7312]
[1734829701949,3.66,183.21,183.12,4.9745]
[1734829702146,3.66,183.21,183.17,2.731]
[1734829702550,3.66,183.21,183.12,4.9745]
[1734829702841,29.26822015,183.31,183.2,2.7307]
[1734829703046,3.66,183.3,183.13,3.66]
[1734829703249,29.26822015,183.36,183.13,3.66]
[1734829703445,2.7289,183.33,183.28,2.7294]
[1734829703638,3.66,183.35,183.18,3.66]
[1734829703841,29.26822015,183.36,183.18,3.66]
[1734829704140,3.66,183.35,183.18,3.66]
[1734829705152,3.66,183.35,183.14,5.4632]
[1734829705539,2.7296,183.28,183.24,2.73]
[1734829705739,3.66,183.27,183.14,5.4632]
[1734829706045,29.26822015,183.36,183.14,5.4632]
[1734829706247,2.7289,183.33,183.14,5.4632]
[1734829706442,29.26822015,183.36,183.13,3.66]
[1734829706443,3.66,183.32,183.16,29.26822015]
[1734829706655,3.66,183.33,183.16,29.26822015]
[1734829706951,3.66,183.33,183.32,2.7289]
[1734829707947,3.66,183.33,183.23,5.0754]
[1734829708552,3.66,183.33,183.31,2.729]
[1734829710552,3.66,183.32,183.23,5.0754]
[1734829710955,3.66,183.32,183.28,2.7295]
[1734829711551,3.66,183.32,183.23,5.0754]
[1734829711755,2.7288,183.33,183.23,5.0754]
[1734829711756,6.3888,183.33,183.23,5.0754]
[1734829711946,3.66,183.33,183.23,5.0754]
[1734829712151,3.66,183.35,183.23,5.0754]
[1734829713054,2.7285,183.36,183.26,2.7297]